Workbook

Sheet Infos
B3: Allgemeine Überlegungen
C4: Die Bewertung von Lösungsvarianten ist fester Bestandteil jedes Projekts.
C5: Die vorliegende Datei unterstützt diese Aktivität und erlaubt es, unterschiedlichen Anforderungen bez. Entscheidungsgrundlagen gerecht zu werden.
C6: Schrittweise kann mit den verschiedenen Techniken eine differenzierte Gesamtaussage erzielt werden.
C7: Die einzelnen Tabellenblätter sind mit einem Blattschutz versehen, um unabsichtliche Änderungen zu verhindern.
C8: Wird der Blattschutz aufgehoben, können die Inhalte auf die eigenen Bedürfnisse angepasst werden.
C9: Grundkenntnisse der einzelnen Techniken und deren Interpretation sind trotz allem Voraussetzung.
B11: Vorgehen
C12: Grundsätzlich sind die einzelnen Tabellenblätter von links nach rechts durchzuarbeiten und mit den notwendigen Eingaben zu versehen.
E13: Felder mit dieser Farbe dienen der Eingabe notwendiger Berechnungswerte.
C14: Die Textfarbe gibt Hinweise auf die Herkunft von Daten aus anderen Tabellenblättern (= Registerfarbe).
C16: 1 | D16: Präferenzmatrix
D17: - | E17: Zielgewichtung per Mausklick (auch für Ungeübte machbar)
D18: - | E18: automatische Ermittlung der Anzahl Nennungen
D19: - | E19: Umrechnung auf die gewohnten 100 Gewichtungspunkte
C21: 2 | D21: Nutzwertanalyse
D22: - | E22: Übertrag der Zielgewichtung aus der Präferenzmatrix
D23: - | E23: Eingabe der Bewertungspunkte je Variante
D24: - | E24: Berechnung der Nutzwertpunkte
D25: - | E25: Ermittlung der Rangfolge
C27: 3 | D27: Kostenvergleich
D28: - | E28: Erfassung der Kostenfaktoren
D29: - | E29: Berechnung der Gesamtkosten je Variante
D30: - | E30: Ermittlung der Rangfolge
D31: - | E31: zusätzliche Auswertungen
C33: 4 | D33: Kosten-Nutzen-Analyse
D34: - | E34: Zusammenfassung der Ergebnisse aus Nutzwertanalyse und Kostenvergleich
D35: - | E35: Berechnung des Kosten-Nutzen-Verhältnisses
D36: - | E36: Ermittlung der Rangfolge über die bisherigen Schritte
C38: Die Schritte 1 - 4 bilden zusammen die Standardmethode für die Bewertung und sollten daher in keinem Projekt fehlen.
C39: In vielen Fällen werden vom Entscheidungsträger auch Aussagen auf Basis von Investitionsrechnungsverfahren erwartet.
C41: 5 | D41: Gewinnvergleich
D42: - | E42: Ergänzung der bisherigen Daten mit Ertragszahlen
D43: - | E43: Berechnung des zu erwartenden Gewinns
D44: - | E44: zusätzliche Auswertungen
C46: 6 | D46: Rentabilität und Amortisation
D47: - | E47: Aussagen bezüglich Rentabilität und Amortisation auf Basis der bisherigen Eingaben
C49: 7 | D49: Kapitalwert (Verfahren der dynamischen Investitionsrechnung)
D50: - | E50: Ergänzung mit Faktor für Abzinsung
D51: - | E51: Möglichkeit für die Berücksichtigung einer allmählichen Auslastungssteigerung
C53: 8 | D53: Annuitätenmethode (Verfahren der dynamischen Investitionsrechnung)
D54: - | E54: Weiterführung der Kapitalwertmethode
C56: Viel Erfolg bei Ihren zukünftigen Projekten.
C59: © by business-training.ch, Walter Egli
C60: Zürich - 2013

Sheet Präferenzmatrix
G2: 1 | H2: 2 | I2: 3 | J2: 4 | K2: 5 | L2: 6 | M2: 7 | N2: 8 | O2: 9 | P2: 10 | Q2: 11 | R2: 12 | S2: 13 | T2: 14 | U2: 15 | V2: 16 | W2: 17 | X2: 18 | Y2: 19
B3: Gewicht | C3: Nennungen | D3: Rang | E3: Nr. | F3: Ziele | G3: =F4 -> Ziel 1 | H3: =F5 -> Ziel 2 | I3: =F6 -> Ziel 3 | J3: =F7 -> Ziel 4 | K3: =F8 -> Ziel 5 | L3: =F9 -> Ziel 6 | M3: =F10 -> Ziel 7 | N3: =F11 -> Ziel 8 | O3: =F12 -> Ziel 9 | P3: =F13 -> Ziel 10 | Q3: =F14 -> Ziel 11 | R3: =F15 -> Ziel 10 | S3: =F16 -> Ziel 13 | T3: =F17 -> 0 | U3: =F18 -> 0 | V3: =F19 -> 0 | W3: =F20 -> 0 | X3: =F21 -> 0 | Y3: =F22 -> 0 | AC3: Definition der Auswahllisten für die Schnittfeldern. So können lediglich die beiden betroffenen Werte ausgewählt werden und Fehleingaben werden verhindert. Um Missverständnisse zu vermeiden, ist dieser Bereich auszublenden.
B4: =C4*$B$24/$C$24 -> 14.1025641 | C4: =FREQUENCY(G4:Z23,E4:E23) -> 11 | D4: =RANK(C4,C4:C18,0) -> 1 | E4: 1 | F4: Ziel 1
B5: =C5*$B$24/$C$24 -> 11.53846154 | C5: 9 | D5: =RANK(C5,C4:C18,0) -> 3 | E5: 2 | F5: Ziel 2 | G5: 2 | AB5: 1 | AC5: 2 | AD5: 2 | AE5: 3 | AF5: 3 | AG5: 4 | AH5: 4 | AI5: 5 | AJ5: 5 | AK5: 6 | AL5: 6 | AM5: 7 | AN5: 7 | AO5: 8 | AP5: 8 | AQ5: 9 | AR5: 9 | AS5: 10 | AT5: 10 | AU5: 11 | AV5: 11 | AW5: 12 | AX5: 12 | AY5: 13 | AZ5: 13 | BA5: 14 | BB5: 14 | BC5: 15 | BD5: 15 | BE5: 16 | BF5: 16 | BG5: 17 | BH5: 17 | BI5: 18 | BJ5: 18 | BK5: 19 | BL5: 19 | BM5: 20
B6: 12.82051282 | C6: 10 | D6: =RANK(C6,C4:C18,0) -> 2 | E6: 3 | F6: Ziel 3 | G6: 1 | H6: 3 | AB6: 1 | AC6: 3 | AD6: 2 | AE6: 4 | AF6: 3 | AG6: 5 | AH6: 4 | AI6: 6 | AJ6: 5 | AK6: 7 | AL6: 6 | AM6: 8 | AN6: 7 | AO6: 9 | AP6: 8 | AQ6: 10 | AR6: 9 | AS6: 11 | AT6: 10 | AU6: 12 | AV6: 11 | AW6: 13 | AX6: 12 | AY6: 14 | AZ6: 13 | BA6: 15 | BB6: 14 | BC6: 16 | BD6: 15 | BE6: 17 | BF6: 16 | BG6: 18 | BH6: 17 | BI6: 19 | BJ6: 18 | BK6: 20
B7: 11.53846154 | C7: 9 | D7: =RANK(C7,C4:C18,0) -> 3 | E7: 4 | F7: Ziel 4 | G7: 1 | H7: 2 | I7: 4 | AB7: 1 | AC7: 4 | AD7: 2 | AE7: 5 | AF7: 3 | AG7: 6 | AH7: 4 | AI7: 7 | AJ7: 5 | AK7: 8 | AL7: 6 | AM7: 9 | AN7: 7 | AO7: 10 | AP7: 8 | AQ7: 11 | AR7: 9 | AS7: 12 | AT7: 10 | AU7: 13 | AV7: 11 | AW7: 14 | AX7: 12 | AY7: 15 | AZ7: 13 | BA7: 16 | BB7: 14 | BC7: 17 | BD7: 15 | BE7: 18 | BF7: 16 | BG7: 19 | BH7: 17 | BI7: 20
B8: 10.25641026 | C8: 8 | D8: =RANK(C8,C4:C18,0) -> 5 | E8: 5 | F8: Ziel 5 | G8: 1 | H8: 2 | I8: 3 | J8: 5 | AB8: 1 | AC8: 5 | AD8: 2 | AE8: 6 | AF8: 3 | AG8: 7 | AH8: 4 | AI8: 8 | AJ8: 5 | AK8: 9 | AL8: 6 | AM8: 10 | AN8: 7 | AO8: 11 | AP8: 8 | AQ8: 12 | AR8: 9 | AS8: 13 | AT8: 10 | AU8: 14 | AV8: 11 | AW8: 15 | AX8: 12 | AY8: 16 | AZ8: 13 | BA8: 17 | BB8: 14 | BC8: 18 | BD8: 15 | BE8: 19 | BF8: 16 | BG8: 20
B9: 10.25641026 | C9: 8 | D9: =RANK(C9,C4:C18,0) -> 5 | E9: 6 | F9: Ziel 6 | G9: 1 | H9: 2 | I9: 3 | J9: 4 | K9: 6 | AB9: 1 | AC9: 6 | AD9: 2 | AE9: 7 | AF9: 3 | AG9: 8 | AH9: 4 | AI9: 9 | AJ9: 5 | AK9: 10 | AL9: 6 | AM9: 11 | AN9: 7 | AO9: 12 | AP9: 8 | AQ9: 13 | AR9: 9 | AS9: 14 | AT9: 10 | AU9: 15 | AV9: 11 | AW9: 16 | AX9: 12 | AY9: 17 | AZ9: 13 | BA9: 18 | BB9: 14 | BC9: 19 | BD9: 15 | BE9: 20
B10: 5.128205128 | C10: 4 | D10: =RANK(C10,C4:C18,0) -> 8 | E10: 7 | F10: Ziel 7 | G10: 1 | H10: 2 | I10: 3 | J10: 4 | K10: 5 | L10: 6 | AB10: 1 | AC10: 7 | AD10: 2 | AE10: 8 | AF10: 3 | AG10: 9 | AH10: 4 | AI10: 10 | AJ10: 5 | AK10: 11 | AL10: 6 | AM10: 12 | AN10: 7 | AO10: 13 | AP10: 8 | AQ10: 14 | AR10: 9 | AS10: 15 | AT10: 10 | AU10: 16 | AV10: 11 | AW10: 17 | AX10: 12 | AY10: 18 | AZ10: 13 | BA10: 19 | BB10: 14 | BC10: 20
B11: 7.692307692 | C11: 6 | D11: =RANK(C11,C4:C18,0) -> 7 | E11: 8 | F11: Ziel 8 | G11: 1 | H11: 2 | I11: 3 | J11: 4 | K11: 5 | L11: 6 | M11: 8 | AB11: 1 | AC11: 8 | AD11: 2 | AE11: 9 | AF11: 3 | AG11: 10 | AH11: 4 | AI11: 11 | AJ11: 5 | AK11: 12 | AL11: 6 | AM11: 13 | AN11: 7 | AO11: 14 | AP11: 8 | AQ11: 15 | AR11: 9 | AS11: 16 | AT11: 10 | AU11: 17 | AV11: 11 | AW11: 18 | AX11: 12 | AY11: 19 | AZ11: 13 | BA11: 20
B12: 3.846153846 | C12: 3 | D12: =RANK(C12,C4:C18,0) -> 11 | E12: 9 | F12: Ziel 9 | G12: 1 | H12: 2 | I12: 3 | J12: 4 | K12: 5 | L12: 6 | M12: 7 | N12: 8 | AB12: 1 | AC12: 9 | AD12: 2 | AE12: 10 | AF12: 3 | AG12: 11 | AH12: 4 | AI12: 12 | AJ12: 5 | AK12: 13 | AL12: 6 | AM12: 14 | AN12: 7 | AO12: 15 | AP12: 8 | AQ12: 16 | AR12: 9 | AS12: 17 | AT12: 10 | AU12: 18 | AV12: 11 | AW12: 19 | AX12: 12 | AY12: 20
B13: 5.128205128 | C13: 4 | D13: =RANK(C13,C4:C18,0) -> 8 | E13: 10 | F13: Ziel 10 | G13: 1 | H13: 2 | I13: 3 | J13: 4 | K13: 5 | L13: 6 | M13: 10 | N13: 8 | O13: 9 | AB13: 1 | AC13: 10 | AD13: 2 | AE13: 11 | AF13: 3 | AG13: 12 | AH13: 4 | AI13: 13 | AJ13: 5 | AK13: 14 | AL13: 6 | AM13: 15 | AN13: 7 | AO13: 16 | AP13: 8 | AQ13: 17 | AR13: 9 | AS13: 18 | AT13: 10 | AU13: 19 | AV13: 11 | AW13: 20
B14: 5.128205128 | C14: 4 | D14: =RANK(C14,C4:C18,0) -> 8 | E14: 11 | F14: Ziel 11 | G14: 1 | H14: 11 | I14: 3 | J14: 4 | K14: 5 | L14: 6 | M14: 7 | N14: 8 | O14: 11 | P14: 10 | AB14: 1 | AC14: 11 | AD14: 2 | AE14: 12 | AF14: 3 | AG14: 13 | AH14: 4 | AI14: 14 | AJ14: 5 | AK14: 15 | AL14: 6 | AM14: 16 | AN14: 7 | AO14: 17 | AP14: 8 | AQ14: 18 | AR14: 9 | AS14: 19 | AT14: 10 | AU14: 20
B15: 1.282051282 | C15: 1 | D15: =RANK(C15,C4:C18,0) -> 12 | E15: 12 | F15: Ziel 10 | G15: 1 | H15: 2 | I15: 3 | J15: 4 | K15: 5 | L15: 6 | M15: 7 | N15: 8 | O15: 9 | P15: 10 | Q15: 11 | AB15: 1 | AC15: 12 | AD15: 2 | AE15: 13 | AF15: 3 | AG15: 14 | AH15: 4 | AI15: 15 | AJ15: 5 | AK15: 16 | AL15: 6 | AM15: 17 | AN15: 7 | AO15: 18 | AP15: 8 | AQ15: 19 | AR15: 9 | AS15: 20
B16: 1.282051282 | C16: 1 | D16: =RANK(C16,C4:C18,0) -> 12 | E16: 13 | F16: Ziel 13 | G16: 1 | H16: 13 | I16: 3 | J16: 4 | K16: 5 | L16: 6 | M16: 7 | N16: 8 | O16: 9 | P16: 10 | Q16: 11 | R16: 12 | AB16: 1 | AC16: 13 | AD16: 2 | AE16: 14 | AF16: 3 | AG16: 15 | AH16: 4 | AI16: 16 | AJ16: 5 | AK16: 17 | AL16: 6 | AM16: 18 | AN16: 7 | AO16: 19 | AP16: 8 | AQ16: 20
B17: 0 | C17: 0 | D17: =RANK(C17,C4:C18,0) -> 14 | E17: 14 | AB17: 1 | AC17: 14 | AD17: 2 | AE17: 15 | AF17: 3 | AG17: 16 | AH17: 4 | AI17: 17 | AJ17: 5 | AK17: 18 | AL17: 6 | AM17: 19 | AN17: 7 | AO17: 20
B18: 0 | C18: 0 | D18: =RANK(C18,C4:C18,0) -> 14 | E18: 15 | AB18: 1 | AC18: 15 | AD18: 2 | AE18: 16 | AF18: 3 | AG18: 17 | AH18: 4 | AI18: 18 | AJ18: 5 | AK18: 19 | AL18: 6 | AM18: 20
B19: 0 | C19: 0 | D19: 13 | E19: 16 | AB19: 1 | AC19: 16 | AD19: 2 | AE19: 17 | AF19: 3 | AG19: 18 | AH19: 4 | AI19: 19 | AJ19: 5 | AK19: 20
B20: 0 | C20: 0 | D20: 12 | E20: 17 | AB20: 1 | AC20: 17 | AD20: 2 | AE20: 18 | AF20: 3 | AG20: 19 | AH20: 4 | AI20: 20
B21: 0 | C21: 0 | D21: 11 | E21: 18 | AB21: 1 | AC21: 18 | AD21: 2 | AE21: 19 | AF21: 3 | AG21: 20
B22: 0 | C22: 0 | D22: 10 | E22: 19 | AB22: 1 | AC22: 19 | AD22: 2 | AE22: 20
B23: 0 | C23: 0 | D23: 9 | E23: 20 | AB23: 1 | AC23: 20
B24: 100 | C24: =SUM(C4:C23) -> 78
B26: =IF(C24>(COUNTA(F4:F23))*((COUNTA(F4:F23)-1)/2),"Entfernen Sie die Werte aus den gelb markierten Zellen!",IF(C24<(COUNTA(F4:F23))*((COUNTA(F4:F23)-1)/2),"Vervollständigen Sie alle grün markierten Schnittfelder!","")) -> 
B28: Hinweise
C30: = Eingabefelder
B32: Nutzen Sie beim Bestimmen der Gewichtung die Auswahllisten in den Schnittfeldern.
B33: Es werden nur diejenigen Ziele angezeigt, welche in der Spalte F definiert wurden.
B34: Bei weniger als 20 Zielen sind die restlichen Zellen in Spalte F zu löschen.
B35: Die betroffenen Schnittfelder werden dadurch gelb markiert.
C37: WICHTIG: Der Inhalt gelb markierter Zellen muss daher leer sein!

Sheet Nutzwert-Analyse
C2: = Eingabefelder
E3: Variante 1 | H3: Variante 2 | K3: Variante 3 | N3: Variante 4
C4: Ziele / Kriterien | D4: Gewicht | E4: Notiz | F4: Punkte | G4: Produkt | H4: Notiz | I4: Punkte | J4: Produkt | K4: Notiz | L4: Punkte | M4: Produkt | N4: Notiz | O4: Punkte | P4: Produkt
B5: =Präferenzmatrix!E4 -> 1 | C5: =Präferenzmatrix!F4 -> Ziel 1 | D5: =Präferenzmatrix!B4 -> 14.1025641 | F5: 0 | G5: =$D5*F5 -> 0 | I5: 0 | J5: =$D5*I5 -> 0 | L5: 0 | M5: =$D5*L5 -> 0 | O5: 0 | P5: =$D5*O5 -> 0
B6: =Präferenzmatrix!E5 -> 2 | C6: =Präferenzmatrix!F5 -> Ziel 2 | D6: =Präferenzmatrix!B5 -> 11.53846154 | F6: 0 | G6: =$D6*F6 -> 0 | I6: 0 | J6: =$D6*I6 -> 0 | L6: 0 | M6: =$D6*L6 -> 0 | O6: 0 | P6: =$D6*O6 -> 0
B7: =Präferenzmatrix!E6 -> 3 | C7: =Präferenzmatrix!F6 -> Ziel 3 | D7: =Präferenzmatrix!B6 -> 12.82051282 | F7: 0 | G7: 0 | I7: 0 | J7: 0 | L7: 0 | M7: 0 | O7: 0 | P7: 0
B8: =Präferenzmatrix!E7 -> 4 | C8: =Präferenzmatrix!F7 -> Ziel 4 | D8: =Präferenzmatrix!B7 -> 11.53846154 | F8: 0 | G8: 0 | I8: 0 | J8: 0 | L8: 0 | M8: 0 | O8: 0 | P8: 0 | S8: Aufbereitung / Konsolidierung für Rangfolge
B9: =Präferenzmatrix!E8 -> 5 | C9: =Präferenzmatrix!F8 -> Ziel 5 | D9: =Präferenzmatrix!B8 -> 10.25641026 | F9: 0 | G9: 0 | I9: 0 | J9: 0 | L9: 0 | M9: 0 | O9: 0 | P9: 0 | S9: unten stehende Zellen nicht löschen
B10: =Präferenzmatrix!E9 -> 6 | C10: =Präferenzmatrix!F9 -> Ziel 6 | D10: =Präferenzmatrix!B9 -> 10.25641026 | F10: 0 | G10: 0 | I10: 0 | J10: 0 | L10: 0 | M10: 0 | O10: 0 | P10: 0 | S10: =IF(G25=0,"",G25) -> 
B11: =Präferenzmatrix!E10 -> 7 | C11: =Präferenzmatrix!F10 -> Ziel 7 | D11: =Präferenzmatrix!B10 -> 5.128205128 | F11: 0 | G11: 0 | I11: 0 | J11: 0 | L11: 0 | M11: 0 | O11: 0 | P11: 0 | S11: =IF(J25=0,"",J25) -> 
B12: =Präferenzmatrix!E11 -> 8 | C12: =Präferenzmatrix!F11 -> Ziel 8 | D12: =Präferenzmatrix!B11 -> 7.692307692 | F12: 0 | G12: 0 | I12: 0 | J12: 0 | L12: 0 | M12: 0 | O12: 0 | P12: 0 | S12: =IF(M25=0,"",M25) -> 
B13: =Präferenzmatrix!E12 -> 9 | C13: =Präferenzmatrix!F12 -> Ziel 9 | D13: =Präferenzmatrix!B12 -> 3.846153846 | F13: 0 | G13: 0 | I13: 0 | J13: 0 | L13: 0 | M13: 0 | O13: 0 | P13: 0 | S13: =IF(P25=0,"",P25) -> 
B14: =Präferenzmatrix!E13 -> 10 | C14: =Präferenzmatrix!F13 -> Ziel 10 | D14: =Präferenzmatrix!B13 -> 5.128205128 | F14: 0 | G14: 0 | I14: 0 | J14: 0 | L14: 0 | M14: 0 | O14: 0 | P14: 0
B15: =Präferenzmatrix!E14 -> 11 | C15: =Präferenzmatrix!F14 -> Ziel 11 | D15: =Präferenzmatrix!B14 -> 5.128205128 | F15: 0 | G15: 0 | I15: 0 | J15: 0 | L15: 0 | M15: 0 | O15: 0 | P15: 0
B16: =Präferenzmatrix!E15 -> 12 | C16: =Präferenzmatrix!F15 -> Ziel 10 | D16: =Präferenzmatrix!B15 -> 1.282051282 | F16: 0 | G16: 0 | I16: 0 | J16: 0 | L16: 0 | M16: 0 | O16: 0 | P16: 0
B17: =Präferenzmatrix!E16 -> 13 | C17: =Präferenzmatrix!F16 -> Ziel 13 | D17: =Präferenzmatrix!B16 -> 1.282051282 | F17: 0 | G17: 0 | I17: 0 | J17: 0 | L17: 0 | M17: 0 | O17: 0 | P17: 0
B18: =Präferenzmatrix!E17 -> 14 | C18: =Präferenzmatrix!F17 -> 0 | D18: =Präferenzmatrix!B17 -> 0 | F18: 0 | G18: 0 | I18: 0 | J18: 0 | L18: 0 | M18: 0 | O18: 0 | P18: 0
B19: =Präferenzmatrix!E18 -> 15 | C19: =Präferenzmatrix!F18 -> 0 | D19: =Präferenzmatrix!B18 -> 0 | F19: 0 | G19: 0 | I19: 0 | J19: 0 | L19: 0 | M19: 0 | O19: 0 | P19: 0
B20: =Präferenzmatrix!E19 -> 16 | C20: =Präferenzmatrix!F19 -> 0 | D20: =Präferenzmatrix!B19 -> 0 | F20: 0 | G20: 0 | I20: 0 | J20: 0 | L20: 0 | M20: 0 | O20: 0 | P20: 0
B21: =Präferenzmatrix!E20 -> 17 | C21: =Präferenzmatrix!F20 -> 0 | D21: =Präferenzmatrix!B20 -> 0 | F21: 0 | G21: 0 | I21: 0 | J21: 0 | L21: 0 | M21: 0 | O21: 0 | P21: 0
B22: =Präferenzmatrix!E21 -> 18 | C22: =Präferenzmatrix!F21 -> 0 | D22: =Präferenzmatrix!B21 -> 0 | F22: 0 | G22: 0 | I22: 0 | J22: 0 | L22: 0 | M22: 0 | O22: 0 | P22: 0
B23: =Präferenzmatrix!E22 -> 19 | C23: =Präferenzmatrix!F22 -> 0 | D23: =Präferenzmatrix!B22 -> 0 | F23: 0 | G23: 0 | I23: 0 | J23: 0 | L23: 0 | M23: 0 | O23: 0 | P23: 0
B24: =Präferenzmatrix!E23 -> 20 | C24: =Präferenzmatrix!F23 -> 0 | D24: =Präferenzmatrix!B23 -> 0 | F24: 10 | G24: 0 | I24: 0 | J24: =$D24*I24 -> 0 | L24: 0 | M24: =$D24*L24 -> 0 | O24: 0 | P24: =$D24*O24 -> 0
E25: Summe: | G25: =SUM(G5:G24) -> 0 | J25: =SUM(J5:J24) -> 0 | M25: =SUM(M5:M24) -> 0 | P25: =SUM(P5:P24) -> 0
E27: Rang: | G27: =IF(ISERROR(RANK(G25,$S$10:$S$13,0)),"",(RANK(G25,$S$10:$S$13,0))) ->  | J27: =IF(ISERROR(RANK(J25,$S$10:$S$13,0)),"",(RANK(J25,$S$10:$S$13,0))) ->  | M27: =IF(ISERROR(RANK(M25,$S$10:$S$13,0)),"",(RANK(M25,$S$10:$S$13,0))) ->  | P27: =IF(ISERROR(RANK(P25,$S$10:$S$13,0)),"",(RANK(P25,$S$10:$S$13,0))) -> 
B29: Hinweis:
B30: Sofern die Zielgewichtung manuell und nicht mit Hilfe der Präferenzmatrix vorgenommen wurde,
B31: entfernen Sie den Blattschutz und tragen Sie die Werte in Spalte D manuell ein.
B32: Schalten Sie zur Sicherheit den Blattschutz anschliessend wieder ein.

Sheet Kostenvergleich
A2: Basisdaten für alle Varianten | O2: Aufbereitung / Konsolidierung für Rangfolge
O3: unten stehende Zellen nicht löschen
B4: Zinssatz kalk. Zinsen | E4: 0.1 | O4: =IF(ISERROR(E33),"",E33) -> 188900
B5: erwartete Auslastung | E5: 10000 | F5: Vergleichswert für alle Varianten | O5: =IF(ISERROR(G33),"",G33) -> 186200
O6: =IF(ISERROR(I33),"",I33) -> 220100
B7: Daten je Variante | O7: =IF(ISERROR(K33),"",K33) -> 
E9: ='Nutzwert-Analyse'!E3 -> Variante 1 | G9: ='Nutzwert-Analyse'!H3 -> Variante 2 | I9: ='Nutzwert-Analyse'!K3 -> Variante 3 | K9: ='Nutzwert-Analyse'!N3 -> Variante 4
B10: Investition (Anschaffungskosten) | E10: 340000 | G10: 260000 | I10: 420000 | K10: 0
B11: Liquidationserlös | E11: 14000 | G11: 10000 | I11: 32000 | K11: 0
B12: Nutzungsdauer (Jahre) | E12: 5 | G12: 4 | I12: 8 | K12: 0 | M12: !! Steuerung für Berechnung und Anzeige (0 = keine Variante)
B14: Kostenzusammenstellung | E14: erwartete | F14: maximale | G14: erwartete | H14: maximale | I14: erwartete | J14: maximale | K14: erwartete | L14: maximale | M14: max. Kapazität als zusätzlicher Vergleichswert
E15: Auslastung | F15: Kapazität | G15: Auslastung | H15: Kapazität | I15: Auslastung | J15: Kapazität | K15: Auslastung | L15: Kapazität
B17: bei Output von (Leistungseinheiten): | E17: =$E$5 -> 10000 | F17: 12500 | G17: =$E$5 -> 10000 | H17: 10000 | I17: =$E$5 -> 10000 | J17: 18000 | K17: =$E$5 -> 10000
B19: Fixkosten / Jahr
C20: Standortkosten (Miete, Heizung etc.) | E20: 25000 | G20: 4200 | I20: 28000
C21: Abschreibungen | E21: =(E10-E11)/E12 -> 65200 | G21: =(G10-G11)/G12 -> 62500 | I21: =(I10-I11)/I12 -> 48500 | K21: =(K10-K11)/K12 -> 
C22: kalk. Zinsen | E22: =(E10+E11)/2*$E$4 -> 17700 | G22: =(G10+G11)/2*$E$4 -> 13500 | I22: =(I10+I11)/2*$E$4 -> 22600 | K22: =(K10+K11)/2*$E$4 -> 0
C23: Summe Fixkosten | E23: =SUM(E20:E22) -> 107900 | F23: =IF(F17="","",SUM(E20:E22)) -> 107900 | G23: =SUM(G20:G22) -> 80200 | H23: =IF(H17="","",SUM(G20:G22)) -> 80200 | I23: =SUM(I20:I22) -> 99100 | J23: =IF(J17="","",SUM(I20:I22)) -> 99100 | K23: =SUM(K20:K22) ->  | L23: =IF(L17="","",SUM(K20:K22)) -> 
B25: Variable Kosten
C26: Personal / Lohn | E26: 30000 | F26: 38000 | G26: 50000 | H26: 50000 | I26: 56000 | J26: 58000
C27: Material | E27: 18000 | F27: 26000 | G27: 25000 | H27: 25000 | I27: 25000 | J27: 34000
C28: Unterhalt | E28: 12000 | F28: 12000 | G28: 10000 | H28: 10000 | I28: 18500 | J28: 18500
C29: Energie | E29: 6000 | F29: 7200 | G29: 5000 | H29: 5000 | I29: 8500 | J29: 9000
C30: Sonst. Betriebskosten | E30: 15000 | F30: 18050 | G30: 16000 | H30: 16000 | I30: 13000 | J30: 13800
C31: Summe variable Kosten | E31: =SUM(E26:E30) -> 81000 | F31: =IF(F17="","",SUM(F26:F30)) -> 101250 | G31: =SUM(G26:G30) -> 106000 | H31: =IF(H17="","",SUM(H26:H30)) -> 106000 | I31: =SUM(I26:I30) -> 121000 | J31: =IF(J17="","",SUM(J26:J30)) -> 133300 | K31: =SUM(K26:K30) -> 0 | L31: =IF(L17="","",SUM(L26:L30)) -> 
B33: Total Kosten | E33: =E23+E31 -> 188900 | F33: =IF(F17="","",E23+F31) -> 209150 | G33: =G23+G31 -> 186200 | H33: =IF(H17="","",G23+H31) -> 186200 | I33: =I23+I31 -> 220100 | J33: =IF(J17="","",I23+J31) -> 232400 | K33: =K23+K31 ->  | L33: =IF(L17="","",K23+L31) -> 
B35: Rang: | E35: =RANK(E33,$O$4:$O$7,1) -> 2 | G35: =RANK(G33,$O$4:$O$7,1) -> 1 | I35: =RANK(I33,$O$4:$O$7,1) -> 3 | K35: =RANK(K33,$O$4:$O$7,1) -> 
A37: Auswertung
E39: =E9 -> Variante 1 | G39: =G9 -> Variante 2 | I39: =I9 -> Variante 3 | K39: =K9 -> Variante 4
E40: =E14 -> erwartete | F40: maximale | G40: erwartete | H40: maximale | I40: erwartete | J40: maximale | K40: erwartete | L40: maximale
E41: Auslastung | F41: Kapazität | G41: Auslastung | H41: Kapazität | I41: Auslastung | J41: Kapazität | K41: Auslastung | L41: Kapazität
B42: Gesamtkosten / Jahr | E42: =E33 -> 188900 | F42: 209150 | G42: 186200 | H42: 186200 | I42: 220100 | J42: 232400
B43: Fixkosten / Leistungseinheit | E43: =IF(E17="","",E23/E17) -> 10.79 | F43: =IF(F17="","",F23/F17) -> 8.632 | G43: =IF(G17="","",G23/G17) -> 8.02 | H43: =IF(H17="","",H23/H17) -> 8.02 | I43: =I23/I17 -> 9.91 | J43: =IF(J17="","",J23/J17) -> 5.505555556 | K43: =K23/K17 ->  | L43: =IF(L17="","",L23/L17) -> 
B44: Variable Kosten / Leistungseinheit | E44: =IF(E17="","",E31/E17) -> 8.1 | F44: =IF(F17="","",F31/F17) -> 8.1 | G44: =IF(G17="","",G31/G17) -> 10.6 | H44: =IF(H17="","",H31/H17) -> 10.6 | I44: =I31/I17 -> 12.1 | J44: =IF(J17="","",J31/J17) -> 7.405555556 | K44: =K31/K17 -> 0 | L44: =IF(L17="","",L31/L17) -> 
B45: Stückkosten | E45: =IF(E17="","",E33/E17) -> 18.89 | F45: =IF(F17="","",F33/F17) -> 16.732 | G45: =IF(G17="","",G33/G17) -> 18.62 | H45: =IF(H17="","",H33/H17) -> 18.62 | I45: =I33/I17 -> 22.01 | J45: =IF(J17="","",J33/J17) -> 12.91111111 | K45: =K33/K17 ->  | L45: =IF(L17="","",L33/L17) -> 
B47: Kritische Menge
B48: Gleiche Kosten bei Output von: | E48: =E17 -> 10000 | F48: =F17 -> 12500 | G48: =IF((E23-G23)/(G44-E44)<=0,"keine kM",(E23-G23)/(G44-E44)) -> 11080 | H48: =IF((F23-H23)/(H44-F44)<=0,"keine kM",(F23-H23)/(H44-F44)) -> 11080 | I48: =IF((E23-I23)/(I44-E44)<=0,"keine kM",(E23-I23)/(I44-E44)) -> 2200 | J48: =IF((F23-J23)/(J44-F44)<=0,"keine kM",(F23-J23)/(J44-F44)) -> keine kM | K48: =IF((E23-K23)/(K44-E44)<=0,"keine kM",(E23-K23)/(K44-E44)) ->  | L48: =IF((E23-L23)/(L44-E44)<=0,"keine kM",(E23-L23)/(L44-E44)) -> 
G49: =G17 -> 10000 | H49: =H17 -> 10000 | I49: =IF((G23-I23)/(I44-G44)<=0,"keine kM",(G23-I23)/(I44-G44)) -> keine kM | J49: =IF((H23-J23)/(J44-H44)<=0,"keine kM",(H23-J23)/(J44-H44)) -> 5916.521739 | K49: =IF((G23-K23)/(K44-G44)<=0,"keine kM",(G23-K23)/(K44-G44)) ->  | L49: =IF((H23-L23)/(L44-H44)<=0,"keine kM",(H23-L23)/(L44-H44)) -> 
I50: =I17 -> 10000 | J50: =J17 -> 18000 | K50: =IF((I23-K23)/(K44-I44)<=0,"keine kM",(I23-K23)/(K44-I44)) ->  | L50: =IF((J23-L23)/(L44-J44)<=0,"keine kM",(J23-L23)/(L44-J44)) -> 
B51: Hinweis:
B52: Für die Berechnung der kritischen Menge muss von einer Variante als Basiswert ausgegangen werden.
B53: "keine kM" bedeutet, dass die entsprechende Variante keine Kostenvorteile zur Folge hat und die Basisvariante stets günstiger ist.

Sheet Kosten-Nutzen
B3: Kosten-Nutzen-Vergleich (Zusammenfassung) | O3: Aufbereitung / Konsolidierung für Rangfolge
O4: unten stehende Zellen nicht löschen
E5: ='Nutzwert-Analyse'!E3 -> Variante 1 | G5: ='Nutzwert-Analyse'!H3 -> Variante 2 | I5: ='Nutzwert-Analyse'!K3 -> Variante 3 | K5: ='Nutzwert-Analyse'!N3 -> Variante 4 | O5: Kosten | Q5: Kosten/Nutzen
O6: =IF(ISERROR(E20),"",E20) -> 188900 | Q6: =IF(ISERROR(E25),"",E25) -> 
B7: Nutzwertanalyse (Zusammenfassung) | O7: =IF(ISERROR(G20),"",G20) -> 186200 | Q7: =IF(ISERROR(G25),"",G25) -> 
C8: Nutzwerte | E8: ='Nutzwert-Analyse'!G25 -> 0 | G8: ='Nutzwert-Analyse'!J25 -> 0 | I8: ='Nutzwert-Analyse'!M25 -> 0 | K8: ='Nutzwert-Analyse'!P25 -> 0 | O8: =IF(ISERROR(I20),"",I20) -> 220100 | Q8: =IF(ISERROR(I25),"",I25) -> 
C9: Bereinigung monetäre Ziele | E9: 0 | G9: 0 | I9: 0 | K9: 0 | M9: Werden vom Total der Nutzwertpunkte subtrahiert. | O9: =IF(ISERROR(K20),"",K20) ->  | Q9: =IF(ISERROR(K25),"",K25) -> 
C11: Nutzwerte bereiningt | E11: =E8-E9 -> 0 | G11: =G8-G9 -> 0 | I11: =I8-I9 -> 0 | K11: =K8-K9 -> 0
C13: Rangfolge Nutzen | E13: ='Nutzwert-Analyse'!G27 ->  | G13: ='Nutzwert-Analyse'!J27 ->  | I13: ='Nutzwert-Analyse'!M27 ->  | K13: ='Nutzwert-Analyse'!P27 -> 
B16: Kostenvergleich (Zusammenfassung)
C17: Fixkosten | E17: =Kostenvergleich!E23 -> 107900 | G17: =Kostenvergleich!G23 -> 80200 | I17: =Kostenvergleich!I23 -> 99100 | K17: =Kostenvergleich!K23 -> 
C18: Variable Kosten | E18: =Kostenvergleich!E31 -> 81000 | G18: =Kostenvergleich!G31 -> 106000 | I18: =Kostenvergleich!I31 -> 121000 | K18: =Kostenvergleich!K31 -> 0
C20: Total Kosten | E20: =Kostenvergleich!E33 -> 188900 | G20: =Kostenvergleich!G33 -> 186200 | I20: =Kostenvergleich!I33 -> 220100 | K20: =Kostenvergleich!K33 -> 
C22: Rangfolge Kosten | E22: =RANK(E20,$O$6:$O$9,1) -> 2 | G22: =RANK(G20,$O$6:$O$9,1) -> 1 | I22: =RANK(I20,$O$6:$O$9,1) -> 3 | K22: =RANK(K20,$O$6:$O$9,1) -> 
B25: Kosten / Nutzen - Verhältnis | E25: =E20/E11 ->  | G25: =G20/G11 ->  | I25: =I20/I11 ->  | K25: =K20/K11 -> 
C27: Rangfolge Kosten/Nutzen | E27: =RANK(E25,$Q$6:$Q$9,1) ->  | G27: =RANK(G25,$Q$6:$Q$9,1) ->  | I27: =RANK(I25,$Q$6:$Q$9,1) ->  | K27: =RANK(K25,$Q$6:$Q$9,1) -> 

Sheet Gewinnvergleich
A2: =Kostenvergleich!A2 -> Basisdaten für alle Varianten
B4: =Kostenvergleich!B4 -> Zinssatz kalk. Zinsen | E4: =Kostenvergleich!E4 -> 0.1
B5: =Kostenvergleich!B5 -> erwartete Auslastung | E5: =Kostenvergleich!E5 -> 10000
B7: =Kostenvergleich!B7 -> Daten je Variante | E7: (Zusammenfassung aus Kostenvergleich)
E9: ='Nutzwert-Analyse'!E3 -> Variante 1 | G9: ='Nutzwert-Analyse'!H3 -> Variante 2 | I9: ='Nutzwert-Analyse'!K3 -> Variante 3 | K9: ='Nutzwert-Analyse'!N3 -> Variante 4
B10: =Kostenvergleich!B10 -> Investition (Anschaffungskosten) | E10: =Kostenvergleich!E10 -> 340000 | G10: =Kostenvergleich!G10 -> 260000 | I10: =Kostenvergleich!I10 -> 420000 | K10: =Kostenvergleich!K10 -> 0
B11: =Kostenvergleich!B11 -> Liquidationserlös | E11: =Kostenvergleich!E11 -> 14000 | G11: =Kostenvergleich!G11 -> 10000 | I11: =Kostenvergleich!I11 -> 32000 | K11: =Kostenvergleich!K11 -> 0
B12: =Kostenvergleich!B12 -> Nutzungsdauer (Jahre) | E12: =Kostenvergleich!E12 -> 5 | G12: =Kostenvergleich!G12 -> 4 | I12: =Kostenvergleich!I12 -> 8 | K12: =Kostenvergleich!K12 -> 0
E14: =Kostenvergleich!E14 -> erwartete | F14: =Kostenvergleich!F14 -> maximale | G14: =Kostenvergleich!G14 -> erwartete | H14: =Kostenvergleich!H14 -> maximale | I14: =Kostenvergleich!I14 -> erwartete | J14: =Kostenvergleich!J14 -> maximale | K14: =Kostenvergleich!K14 -> erwartete | L14: =Kostenvergleich!L14 -> maximale
E15: =Kostenvergleich!E15 -> Auslastung | F15: =Kostenvergleich!F15 -> Kapazität | G15: =Kostenvergleich!G15 -> Auslastung | H15: =Kostenvergleich!H15 -> Kapazität | I15: =Kostenvergleich!I15 -> Auslastung | J15: =Kostenvergleich!J15 -> Kapazität | K15: =Kostenvergleich!K15 -> Auslastung | L15: =Kostenvergleich!L15 -> Kapazität
B17: =Kostenvergleich!B17 -> bei Output von (Leistungseinheiten): | E17: =Kostenvergleich!E17 -> 10000 | F17: =Kostenvergleich!F17 -> 12500 | G17: =Kostenvergleich!G17 -> 10000 | H17: =Kostenvergleich!H17 -> 10000 | I17: =Kostenvergleich!I17 -> 10000 | J17: =Kostenvergleich!J17 -> 18000 | K17: =Kostenvergleich!K17 -> 10000 | L17: =Kostenvergleich!L17 -> 0
B19: =Kostenvergleich!B19 -> Fixkosten / Jahr | E19: =Kostenvergleich!E23 -> 107900 | F19: =Kostenvergleich!F23 -> 107900 | G19: =Kostenvergleich!G23 -> 80200 | H19: =Kostenvergleich!H23 -> 80200 | I19: =Kostenvergleich!I23 -> 99100 | J19: =Kostenvergleich!J23 -> 99100 | K19: =Kostenvergleich!K23 ->  | L19: =Kostenvergleich!L23 -> 
B20: =Kostenvergleich!B25 -> Variable Kosten | E20: =Kostenvergleich!E31 -> 81000 | F20: =Kostenvergleich!F31 -> 101250 | G20: =Kostenvergleich!G31 -> 106000 | H20: =Kostenvergleich!H31 -> 106000 | I20: =Kostenvergleich!I31 -> 121000 | J20: =Kostenvergleich!J31 -> 133300 | K20: =Kostenvergleich!K31 -> 0 | L20: =Kostenvergleich!L31 -> 
B21: =Kostenvergleich!B33 -> Total Kosten | E21: =Kostenvergleich!E33 -> 188900 | F21: =Kostenvergleich!F33 -> 209150 | G21: =Kostenvergleich!G33 -> 186200 | H21: =Kostenvergleich!H33 -> 186200 | I21: =Kostenvergleich!I33 -> 220100 | J21: =Kostenvergleich!J33 -> 232400 | K21: =Kostenvergleich!K33 ->  | L21: =Kostenvergleich!L33 -> 
B23: Erlös je Leistungseinheit | E23: 19.2 | G23: 19.05 | I23: 20.2 | K23: 0
A25: Auswertung I | E25: Gewinnvergleich
E27: =E9 -> Variante 1 | G27: =G9 -> Variante 2 | I27: =I9 -> Variante 3 | K27: =K9 -> Variante 4
E28: =E14 -> erwartete | F28: maximale | G28: erwartete | H28: maximale | I28: erwartete | J28: maximale | K28: erwartete | L28: maximale
E29: Auslastung | F29: Kapazität | G29: Auslastung | H29: Kapazität | I29: Auslastung | J29: Kapazität | K29: Auslastung | L29: Kapazität
B30: Erlös je Periode | E30: =IF(E12=0,"",$E$23*E17) -> 192000 | F30: =IF(E12=0,"",$E$23*F17) -> 240000 | G30: =IF(G12=0,"",$G$23*G17) -> 190500 | H30: =IF(G12=0,"",$G$23*H17) -> 190500 | I30: =IF(I12=0,"",$I$23*I17) -> 202000 | J30: =IF(I12=0,"",$I$23*J17) -> 363600 | K30: =IF(K12=0,"",$K$23*K17) ->  | L30: =IF(K12=0,"",$K$23*L17) -> 
B31: Gewinn je Periode | E31: =E30-E21 -> 3100 | F31: 30850 | G31: 4300 | H31: 4300 | I31: -18100 | J31: 131200
B32: Gewinn je Leistungseinheit | E32: =E30/E17-E21/E17 -> 0.31 | F32: =F30/F17-F21/F17 -> 2.468 | G32: =G30/G17-G21/G17 -> 0.43 | H32: 0.43 | I32: -1.81 | J32: 7.288888889
B33: Investitionsgewinn (gesamte Nutzungsdauer) | E33: =E31*$E$12 -> 15500 | F33: =F31*$E$12 -> 154250 | G33: 21500 | H33: 21500 | I33: -90500 | J33: 656000
A35: Auswertung II | E35: Deckungsbeiträge und Break-Even-Point
B37: Deckungsbeitrag / Periode | E37: =E30-E20 -> 111000 | F37: 138750 | G37: 84500 | H37: 84500 | I37: 81000 | J37: 230300
B38: Deckungsbeitrag / Leistungseinheit | E38: =IF(E12=0,"",$E$23-E20/E17) -> 11.1 | F38: =IF(E12=0,"",$E$23-F20/F17) -> 11.1 | G38: =IF(G12=0,"",$G$23-G20/G17) -> 8.45 | H38: =IF(G12=0,"",$G$23-H20/H17) -> 8.45 | I38: =IF(I12=0,"",$I$23-I20/I17) -> 8.1 | J38: =IF(I12=0,"",$I$23-J20/J17) -> 12.79444444 | K38: =IF(K12=0,"",$K$23-K20/K17) ->  | L38: =IF(K12=0,"",$K$23-L20/L17) -> 
B39: Break-Even (Gewinnschwelle)
C40: absolut (Leistungseinheiten) | E40: =E19/E38 -> 9720.720721 | F40: =F19/F38 -> 9720.720721 | G40: =G19/G38 -> 9491.12426 | H40: 9491.12426 | I40: 12234.5679 | J40: 7745.549284
C41: in % des Outputs | E41: =E40/E17*100 -> 97.20720721 | F41: 77.76576577 | G41: 94.9112426 | H41: 94.9112426 | I41: 122.345679 | J41: 43.03082935
B42: Sicherheitskoeffizient (%) | E42: =E31/E37*100 -> 2.792792793 | F42: 22.23423423 | G42: 5.088757396 | H42: 5.088757396 | I42: -22.34567901 | J42: 56.96917065
B43: Deckungsbeitragsquote (%) | E43: =E38/E23*100 -> 57.8125 | F43: =F38/E23*100 -> 57.8125 | G43: =G38/G23*100 -> 44.35695538 | H43: =H38/G23*100 -> 44.35695538 | I43: =I38/I23*100 -> 40.0990099 | J43: =J38/I23*100 -> 63.33883388 | K43: =K38/K23*100 ->  | L43: =L38/K23*100 -> 

Sheet Rentabilität & Amortisation
A2: =Kostenvergleich!A2 -> Basisdaten für alle Varianten
B4: =Kostenvergleich!B4 -> Zinssatz kalk. Zinsen | E4: =Kostenvergleich!E4 -> 0.1
B5: =Kostenvergleich!B5 -> erwartete Auslastung | E5: =Kostenvergleich!E5 -> 10000
B7: =Kostenvergleich!B7 -> Daten je Variante | E7: (Zusammenfassung aus Kosten- und Gewinnvergleich)
E9: ='Nutzwert-Analyse'!E3 -> Variante 1 | G9: ='Nutzwert-Analyse'!H3 -> Variante 2 | I9: ='Nutzwert-Analyse'!K3 -> Variante 3 | K9: ='Nutzwert-Analyse'!N3 -> Variante 4
B10: =Kostenvergleich!B10 -> Investition (Anschaffungskosten) | E10: =Kostenvergleich!E10 -> 340000 | G10: =Kostenvergleich!G10 -> 260000 | I10: =Kostenvergleich!I10 -> 420000 | K10: =Kostenvergleich!K10 -> 0
B11: =Kostenvergleich!B11 -> Liquidationserlös | E11: =Kostenvergleich!E11 -> 14000 | G11: =Kostenvergleich!G11 -> 10000 | I11: =Kostenvergleich!I11 -> 32000 | K11: =Kostenvergleich!K11 -> 0
B12: =Kostenvergleich!B12 -> Nutzungsdauer (Jahre) | E12: =Kostenvergleich!E12 -> 5 | G12: =Kostenvergleich!G12 -> 4 | I12: =Kostenvergleich!I12 -> 8 | K12: =Kostenvergleich!K12 -> 0
E14: =Kostenvergleich!E14 -> erwartete | F14: =Kostenvergleich!F14 -> maximale | G14: =Kostenvergleich!G14 -> erwartete | H14: =Kostenvergleich!H14 -> maximale | I14: =Kostenvergleich!I14 -> erwartete | J14: =Kostenvergleich!J14 -> maximale | K14: =Kostenvergleich!K14 -> erwartete | L14: =Kostenvergleich!L14 -> maximale
E15: =Kostenvergleich!E15 -> Auslastung | F15: =Kostenvergleich!F15 -> Kapazität | G15: =Kostenvergleich!G15 -> Auslastung | H15: =Kostenvergleich!H15 -> Kapazität | I15: =Kostenvergleich!I15 -> Auslastung | J15: =Kostenvergleich!J15 -> Kapazität | K15: =Kostenvergleich!K15 -> Auslastung | L15: =Kostenvergleich!L15 -> Kapazität
B17: =Kostenvergleich!B17 -> bei Output von (Leistungseinheiten): | E17: =Kostenvergleich!E17 -> 10000 | F17: =Kostenvergleich!F17 -> 12500 | G17: =Kostenvergleich!G17 -> 10000 | H17: =Kostenvergleich!H17 -> 10000 | I17: =Kostenvergleich!I17 -> 10000 | J17: =Kostenvergleich!J17 -> 18000 | K17: =Kostenvergleich!K17 -> 10000 | L17: =Kostenvergleich!L17 -> 0
B19: =Kostenvergleich!B19 -> Fixkosten / Jahr | E19: =Kostenvergleich!E23 -> 107900 | F19: =Kostenvergleich!F23 -> 107900 | G19: =Kostenvergleich!G23 -> 80200 | H19: =Kostenvergleich!H23 -> 80200 | I19: =Kostenvergleich!I23 -> 99100 | J19: =Kostenvergleich!J23 -> 99100 | K19: =Kostenvergleich!K23 ->  | L19: =Kostenvergleich!L23 -> 
B20: =Kostenvergleich!B25 -> Variable Kosten | E20: =Kostenvergleich!E31 -> 81000 | F20: =Kostenvergleich!F31 -> 101250 | G20: =Kostenvergleich!G31 -> 106000 | H20: =Kostenvergleich!H31 -> 106000 | I20: =Kostenvergleich!I31 -> 121000 | J20: =Kostenvergleich!J31 -> 133300 | K20: =Kostenvergleich!K31 -> 0 | L20: =Kostenvergleich!L31 -> 
B21: =Kostenvergleich!B33 -> Total Kosten | E21: =Kostenvergleich!E33 -> 188900 | F21: =Kostenvergleich!F33 -> 209150 | G21: =Kostenvergleich!G33 -> 186200 | H21: =Kostenvergleich!H33 -> 186200 | I21: =Kostenvergleich!I33 -> 220100 | J21: =Kostenvergleich!J33 -> 232400 | K21: =Kostenvergleich!K33 ->  | L21: =Kostenvergleich!L33 -> 
B23: =Gewinnvergleich!B30 -> Erlös je Periode | E23: =Gewinnvergleich!E30 -> 192000 | F23: =Gewinnvergleich!F30 -> 240000 | G23: =Gewinnvergleich!G30 -> 190500 | H23: =Gewinnvergleich!H30 -> 190500 | I23: =Gewinnvergleich!I30 -> 202000 | J23: =Gewinnvergleich!J30 -> 363600 | K23: =Gewinnvergleich!K30 ->  | L23: =Gewinnvergleich!L30 -> 
B24: =Gewinnvergleich!B31 -> Gewinn je Periode | E24: =Gewinnvergleich!E31 -> 3100 | F24: =Gewinnvergleich!F31 -> 30850 | G24: =Gewinnvergleich!G31 -> 4300 | H24: =Gewinnvergleich!H31 -> 4300 | I24: =Gewinnvergleich!I31 -> -18100 | J24: =Gewinnvergleich!J31 -> 131200 | K24: =Gewinnvergleich!K31 ->  | L24: =Gewinnvergleich!L31 -> 
B26: =Gewinnvergleich!B23 -> Erlös je Leistungseinheit | E26: =Gewinnvergleich!E23 -> 19.2 | G26: =Gewinnvergleich!G23 -> 19.05 | I26: =Gewinnvergleich!I23 -> 20.2 | K26: =Gewinnvergleich!K23 -> 0
A28: Rentabilitätsvergleich
E30: ='Nutzwert-Analyse'!E3 -> Variante 1 | G30: ='Nutzwert-Analyse'!H3 -> Variante 2 | I30: ='Nutzwert-Analyse'!K3 -> Variante 3 | K30: ='Nutzwert-Analyse'!N3 -> Variante 4
E31: =E14 -> erwartete | F31: maximale | G31: erwartete | H31: maximale | I31: erwartete | J31: maximale | K31: erwartete | L31: maximale
E32: Auslastung | F32: Kapazität | G32: Auslastung | H32: Kapazität | I32: Auslastung | J32: Kapazität | K32: Auslastung | L32: Kapazität
B33: Rentabilität | E33: =E24/((E10+E11)/2)*100 -> 1.751412429 | F33: =F24/((E10+E11)/2)*100 -> 17.42937853 | G33: =G24/((G10+G11)/2)*100 -> 3.185185185 | H33: =H24/((G10+G11)/2)*100 -> 3.185185185 | I33: =I24/((I10+I11)/2)*100 -> -8.008849558 | J33: =J24/((I10+I11)/2)*100 -> 58.05309735 | K33: =K24/((K10+K11)/2)*100 ->  | L33: =L24/((K10+K11)/2)*100 -> 
B34: Umsatzgewinnrate | E34: =E24/E23 -> 0.01614583333 | F34: =F24/F23 -> 0.1285416667 | G34: =G24/G23 -> 0.02257217848 | H34: =H24/H23 -> 0.02257217848 | I34: =I24/I23 -> -0.0896039604 | J34: =J24/J23 -> 0.3608360836 | K34: =K24/K23 ->  | L34: =L24/L23 -> 
B35: Umsatzrentabilität | E35: =E24*100/E23 -> 1.614583333 | F35: =F24*100/F23 -> 12.85416667 | G35: =G24*100/G23 -> 2.257217848 | H35: =H24*100/H23 -> 2.257217848 | I35: =I24*100/I23 -> -8.96039604 | J35: =J24*100/J23 -> 36.08360836 | K35: =K24*100/K23 ->  | L35: =L24*100/L23 -> 
B36: Kapitalumschlagshäufigkeit | E36: =E23/((E10+E11)/2) -> 1.084745763 | F36: =F23/((E10+E11)/2) -> 1.355932203 | G36: =G23/((G10+G11)/2) -> 1.411111111 | H36: =H23/((G10+G11)/2) -> 1.411111111 | I36: =I23/((I10+I11)/2) -> 0.8938053097 | J36: =J23/((I10+I11)/2) -> 1.608849558 | K36: =K23/((K10+K11)/2) ->  | L36: =L23/((K10+K11)/2) -> 
B37: Return on Investment (ROI) | E37: =E24*100/((E10+E11)/2) -> 1.751412429 | F37: =F24*100/((E10+E11)/2) -> 17.42937853 | G37: =G24*100/((G10+G11)/2) -> 3.185185185 | H37: =H24*G12*100/((G10+G11)/2) -> 12.74074074 | I37: =I24*I12*100/((I10+I11)/2) -> -64.07079646 | J37: =J24*I12*100/((I10+I11)/2) -> 464.4247788 | K37: =K24*K12*100/((K10+K11)/2) ->  | L37: =L24*K12*100/((K10+K11)/2) -> 
A39: Amortisationsvergleich
B41: Amortisationszeit (Jahre) | E41: =E10/(E24+Kostenvergleich!E21) -> 4.978038067 | F41: =E10/(F24+Kostenvergleich!E21) -> 3.539823009 | G41: =G10/(G24+Kostenvergleich!G21) -> 3.892215569 | H41: =G10/(H24+Kostenvergleich!G21) -> 3.892215569 | I41: =I10/(I24+Kostenvergleich!I21) -> 13.81578947 | J41: =I10/(J24+Kostenvergleich!I21) -> 2.337228715 | K41: =K10/(K24+Kostenvergleich!K21) ->  | L41: =K10/(L24+Kostenvergleich!K21) -> 

Sheet Kapitalwert
A2: =Kostenvergleich!A2 -> Basisdaten für alle Varianten
B4: =Kostenvergleich!B4 -> Zinssatz kalk. Zinsen | E4: =Kostenvergleich!E4 -> 0.1
B5: =Kostenvergleich!B5 -> erwartete Auslastung | E5: =Kostenvergleich!E5 -> 10000
B7: =Kostenvergleich!B7 -> Daten je Variante | E7: (Zusammenfassung aus Kosten- und Gewinnvergleich)
E9: ='Nutzwert-Analyse'!E3 -> Variante 1 | G9: ='Nutzwert-Analyse'!H3 -> Variante 2 | I9: ='Nutzwert-Analyse'!K3 -> Variante 3 | K9: ='Nutzwert-Analyse'!N3 -> Variante 4
B10: =Kostenvergleich!B10 -> Investition (Anschaffungskosten) | E10: =Kostenvergleich!E10 -> 340000 | G10: =Kostenvergleich!G10 -> 260000 | I10: =Kostenvergleich!I10 -> 420000 | K10: =Kostenvergleich!K10 -> 0
B11: =Kostenvergleich!B11 -> Liquidationserlös | E11: =Kostenvergleich!E11 -> 14000 | G11: =Kostenvergleich!G11 -> 10000 | I11: =Kostenvergleich!I11 -> 32000 | K11: =Kostenvergleich!K11 -> 0
B12: =Kostenvergleich!B12 -> Nutzungsdauer (Jahre) | E12: =Kostenvergleich!E12 -> 5 | G12: =Kostenvergleich!G12 -> 4 | I12: =Kostenvergleich!I12 -> 8 | K12: =Kostenvergleich!K12 -> 0
E14: =Kostenvergleich!E14 -> erwartete | F14: =Kostenvergleich!F14 -> maximale | G14: =Kostenvergleich!G14 -> erwartete | H14: =Kostenvergleich!H14 -> maximale | I14: =Kostenvergleich!I14 -> erwartete | J14: =Kostenvergleich!J14 -> maximale | K14: =Kostenvergleich!K14 -> erwartete | L14: =Kostenvergleich!L14 -> maximale
E15: =Kostenvergleich!E15 -> Auslastung | F15: =Kostenvergleich!F15 -> Kapazität | G15: =Kostenvergleich!G15 -> Auslastung | H15: =Kostenvergleich!H15 -> Kapazität | I15: =Kostenvergleich!I15 -> Auslastung | J15: =Kostenvergleich!J15 -> Kapazität | K15: =Kostenvergleich!K15 -> Auslastung | L15: =Kostenvergleich!L15 -> Kapazität
B17: =Kostenvergleich!B17 -> bei Output von (Leistungseinheiten): | E17: =Kostenvergleich!E17 -> 10000 | F17: =Kostenvergleich!F17 -> 12500 | G17: =Kostenvergleich!G17 -> 10000 | H17: =Kostenvergleich!H17 -> 10000 | I17: =Kostenvergleich!I17 -> 10000 | J17: =Kostenvergleich!J17 -> 18000 | K17: =Kostenvergleich!K17 -> 10000 | L17: =Kostenvergleich!L17 -> 0
B19: =Kostenvergleich!B19 -> Fixkosten / Jahr | E19: =Kostenvergleich!E23 -> 107900 | F19: =Kostenvergleich!F23 -> 107900 | G19: =Kostenvergleich!G23 -> 80200 | H19: =Kostenvergleich!H23 -> 80200 | I19: =Kostenvergleich!I23 -> 99100 | J19: =Kostenvergleich!J23 -> 99100 | K19: =Kostenvergleich!K23 ->  | L19: =Kostenvergleich!L23 -> 
B20: =Kostenvergleich!B25 -> Variable Kosten | E20: =Kostenvergleich!E31 -> 81000 | F20: =Kostenvergleich!F31 -> 101250 | G20: =Kostenvergleich!G31 -> 106000 | H20: =Kostenvergleich!H31 -> 106000 | I20: =Kostenvergleich!I31 -> 121000 | J20: =Kostenvergleich!J31 -> 133300 | K20: =Kostenvergleich!K31 -> 0 | L20: =Kostenvergleich!L31 -> 
B21: =Kostenvergleich!B33 -> Total Kosten | E21: =Kostenvergleich!E33 -> 188900 | F21: =Kostenvergleich!F33 -> 209150 | G21: =Kostenvergleich!G33 -> 186200 | H21: =Kostenvergleich!H33 -> 186200 | I21: =Kostenvergleich!I33 -> 220100 | J21: =Kostenvergleich!J33 -> 232400 | K21: =Kostenvergleich!K33 ->  | L21: =Kostenvergleich!L33 -> 
B23: =Gewinnvergleich!B30 -> Erlös je Periode | E23: =Gewinnvergleich!E30 -> 192000 | F23: =Gewinnvergleich!F30 -> 240000 | G23: =Gewinnvergleich!G30 -> 190500 | H23: =Gewinnvergleich!H30 -> 190500 | I23: =Gewinnvergleich!I30 -> 202000 | J23: =Gewinnvergleich!J30 -> 363600 | K23: =Gewinnvergleich!K30 ->  | L23: =Gewinnvergleich!L30 -> 
B24: =Gewinnvergleich!B31 -> Gewinn je Periode | E24: =Gewinnvergleich!E31 -> 3100 | F24: =Gewinnvergleich!F31 -> 30850 | G24: =Gewinnvergleich!G31 -> 4300 | H24: =Gewinnvergleich!H31 -> 4300 | I24: =Gewinnvergleich!I31 -> -18100 | J24: =Gewinnvergleich!J31 -> 131200 | K24: =Gewinnvergleich!K31 ->  | L24: =Gewinnvergleich!L31 -> 
B26: =Gewinnvergleich!B23 -> Erlös je Leistungseinheit | E26: =Gewinnvergleich!E23 -> 19.2 | G26: =Gewinnvergleich!G23 -> 19.05 | I26: =Gewinnvergleich!I23 -> 20.2 | K26: =Gewinnvergleich!K23 -> 0
B29: Zinssatz für Abzinsung | E29: 0.08
B30: Auslastungsentwicklung (Werte für die Einschätzung von Szenarien)
C31: 1. Betriebsjahr | E31: 8500 | G31: 9600 | I31: 9200 | K31: 0 | M31: Absatzentwicklung durch lineare Interpolation der beiden Werte.
C32: Letztes Betriebsjahr | E32: 12000 | G32: 10000 | I32: 18000 | K32: 0 | M32: Dies ist als Vorschlag bzw. erste Orientierung zu verstehen.
A34: Kapitalwertvergleich
E36: ='Nutzwert-Analyse'!E3 -> Variante 1 | G36: ='Nutzwert-Analyse'!H3 -> Variante 2 | I36: ='Nutzwert-Analyse'!K3 -> Variante 3 | K36: ='Nutzwert-Analyse'!N3 -> Variante 4
B37: Kapitalwert (Net Present Value, NPV)
B38: Wert aller Zahlungsströme zum heutigen Zeitpunkt | E38: =H59 -> 117845.0409 | G38: =H79 -> 13797.84586 | I38: =H99 -> 394725.5438 | K38: =H119 -> 0
A40: Die Details für die einzelnen Varianten sind nachfolgend aufgeführt.
A42: Details Variante 1
B44: Jahr | C44: Output (LE) | D44: Erlös | E44: Ausgaben | F44: Überschuss | G44: Faktor | H44: Barwert
G45: Abzinsung
A46: 1 | B46: =IF($E$12<>0,1,0) -> 1 | C46: =IF(B46=0,0,$E$31) -> 8500 | D46: =C46*$E$26 -> 163200 | E46: =IF(C46=0,0,(TREND($E$20:$F$20,$E$17:$F$17,C46))) -> 68850 | F46: =IF(B46=$E$12,D46-E46+$E$11,D46-E46) -> 94350 | G46: =IF(B46=0,0,(1+$E$29)^(B46*(-1))) -> 0.9259259259 | H46: =F46*G46 -> 87361.11111
A47: 2 | B47: =IF(B46=0,0,IF(B46+1<=$E$12,B46+1,0)) -> 2 | C47: =IF(B47=0,0,C46+(($E$32-$E$31)/($E$12-1))) -> 9375 | D47: =C47*$E$26 -> 180000 | E47: =IF(C47=0,0,(TREND($E$20:$F$20,$E$17:$F$17,C47))) -> 75937.5 | F47: =IF(B47=$E$12,D47-E47+$E$11,D47-E47) -> 104062.5 | G47: =IF(B47=0,0,(1+$E$29)^(B47*(-1))) -> 0.8573388203 | H47: =F47*G47 -> 89216.82099
A48: 3 | B48: =IF(B47=0,0,IF(B47+1<=$E$12,B47+1,0)) -> 3 | C48: =IF(B48=0,0,C47+(($E$32-$E$31)/($E$12-1))) -> 10250 | D48: 196800 | E48: 83025 | F48: 113775 | G48: =IF(B48=0,0,(1+$E$29)^(B48*(-1))) -> 0.793832241 | H48: 90318.26322
A49: 4 | B49: 4 | C49: 11125 | D49: 213600 | E49: 90112.5 | F49: 123487.5 | G49: 0.7350298528 | H49: 90766.99895
A50: 5 | B50: 5 | C50: 12000 | D50: 230400 | E50: 97200 | F50: 147200 | G50: 0.680583197 | H50: 100181.8466
A51: 6 | B51: 0 | C51: 0 | D51: 0 | E51: 0 | F51: 0 | G51: 0 | H51: 0
A52: 7 | B52: 0 | C52: 0 | D52: 0 | E52: 0 | F52: 0 | G52: 0 | H52: 0
A53: 8 | B53: 0 | C53: 0 | D53: 0 | E53: 0 | F53: 0 | G53: 0 | H53: 0
A54: 9 | B54: 0 | C54: 0 | D54: 0 | E54: 0 | F54: 0 | G54: 0 | H54: 0
A55: 10 | B55: 0 | C55: 0 | D55: 0 | E55: 0 | F55: 0 | G55: 0 | H55: 0
E57: Summe Barwert: | H57: =SUM(H46:H55) -> 457845.0409
E58: abzgl. Anschaffungswert: | H58: =E10*(-1) -> -340000
E59: Kapitalwert | H59: =H57+H58 -> 117845.0409
A62: Details Variante 2
B64: Jahr | C64: Output (LE) | D64: Erlös | E64: Ausgaben | F64: Überschuss | G64: Faktor | H64: Barwert
G65: Abzinsung
A66: 1 | B66: =IF($G$12<>0,1,0) -> 1 | C66: =IF(B66=0,0,$G$31) -> 9600 | D66: =C66*$G$26 -> 182880 | E66: =IF(C66=0,0,TREND($G$20:$H$20,$G$17:$H$17,C66)) -> 106000 | F66: =IF(B66=$G$12,D66-E66+$G$11,D66-E66) -> 76880 | G66: =IF(B66=0,0,(1+$E$29)^(B66*(-1))) -> 0.9259259259 | H66: =F66*G66 -> 71185.18519
A67: 2 | B67: =IF(B66=0,0,IF(B66+1<=$G$12,B66+1,0)) -> 2 | C67: =IF(B67=0,0,C66+(($G$32-$G$31)/($G$12-1))) -> 9733.333333 | D67: =C67*$G$26 -> 185420 | E67: =IF(C67=0,0,TREND($G$20:$H$20,$G$17:$H$17,C67)) -> 106000 | F67: =IF(B67=$G$12,D67-E67+$G$11,D67-E67) -> 79420 | G67: =IF(B67=0,0,(1+$E$29)^(B67*(-1))) -> 0.8573388203 | H67: =F67*G67 -> 68089.84911
A68: 3 | B68: =IF(B67=0,0,IF(B67+1<=$G$12,B67+1,0)) -> 3 | C68: =IF(B68=0,0,C67+(($G$32-$G$31)/($G$12-1))) -> 9866.666667 | D68: 187960 | E68: 106000 | F68: 81960 | G68: =IF(B68=0,0,(1+$E$29)^(B68*(-1))) -> 0.793832241 | H68: 65062.49047
A69: 4 | B69: 4 | C69: 10000 | D69: 190500 | E69: 106000 | F69: 94500 | G69: =IF(B69=0,0,(1+$E$29)^(B69*(-1))) -> 0.7350298528 | H69: 69460.32109
A70: 5 | B70: 0 | C70: 0 | D70: =C70*$G$26 -> 0 | E70: 0 | F70: 0 | G70: 0 | H70: 0
A71: 6 | B71: 0 | C71: 0 | D71: 0 | E71: 0 | F71: 0 | G71: 0 | H71: 0
A72: 7 | B72: 0 | C72: 0 | D72: 0 | E72: 0 | F72: 0 | G72: 0 | H72: 0
A73: 8 | B73: 0 | C73: 0 | D73: 0 | E73: 0 | F73: 0 | G73: 0 | H73: 0
A74: 9 | B74: 0 | C74: 0 | D74: 0 | E74: 0 | F74: 0 | G74: 0 | H74: 0
A75: 10 | B75: 0 | C75: 0 | D75: 0 | E75: 0 | F75: 0 | G75: 0 | H75: 0
E77: Summe Barwert: | H77: =SUM(H66:H75) -> 273797.8459
E78: abzgl. Anschaffungswert: | H78: =G10*(-1) -> -260000
E79: Kapitalwert | H79: =H77+H78 -> 13797.84586
A82: Details Variante 3
B84: Jahr | C84: Output (LE) | D84: Erlös | E84: Ausgaben | F84: Überschuss | G84: Faktor | H84: Barwert
G85: Abzinsung
A86: 1 | B86: =IF($I$12<>0,1,0) -> 1 | C86: =IF(B86=0,0,$I$31) -> 9200 | D86: =C86*$I$26 -> 185840 | E86: =IF(C86=0,0,TREND($I$20:$J$20,$I$17:$J$17,C86)) -> 119770 | F86: =IF(B86=$I$12,D86-E86+$I$11,D86-E86) -> 66070 | G86: =IF(B86=0,0,(1+$E$29)^(B86*(-1))) -> 0.9259259259 | H86: =F86*G86 -> 61175.92593
A87: 2 | B87: =IF(B86=0,0,IF(B86+1<=$I$12,B86+1,0)) -> 2 | C87: =IF(B87=0,0,C86+(($I$32-$I$31)/($I$12-1))) -> 10457.14286 | D87: =C87*$I$26 -> 211234.2857 | E87: =IF(C87=0,0,TREND($I$20:$J$20,$I$17:$J$17,C87)) -> 121702.8571 | F87: =IF(B87=$I$12,D87-E87+$I$11,D87-E87) -> 89531.42857 | G87: =IF(B87=0,0,(1+$E$29)^(B87*(-1))) -> 0.8573388203 | H87: =F87*G87 -> 76758.76935
A88: 3 | B88: =IF(B87=0,0,IF(B87+1<=$I$12,B87+1,0)) -> 3 | C88: =IF(B88=0,0,C87+(($I$32-$I$31)/($I$12-1))) -> 11714.28571 | D88: 236628.5714 | E88: 123635.7143 | F88: 112992.8571 | G88: 0.793832241 | H88: 89697.373
A89: 4 | B89: 4 | C89: 12971.42857 | D89: 262022.8571 | E89: 125568.5714 | F89: 136454.2857 | G89: 0.7350298528 | H89: 100297.9735
A90: 5 | B90: 5 | C90: 14228.57143 | D90: 287417.1429 | E90: 127501.4286 | F90: 159915.7143 | G90: 0.680583197 | H90: 108835.9481
A91: 6 | B91: 6 | C91: 15485.71429 | D91: 312811.4286 | E91: 129434.2857 | F91: 183377.1429 | G91: 0.6301696269 | H91: 115558.7057
A92: 7 | B92: 7 | C92: =IF(B92=0,0,C91+(($I$32-$I$31)/($I$12-1))) -> 16742.85714 | D92: 338205.7143 | E92: 131367.1429 | F92: 206838.5714 | G92: =IF(B92=0,0,(1+$E$29)^(B92*(-1))) -> 0.5834903953 | H92: =F92*G92 -> 120688.3198
A93: 8 | B93: 8 | C93: 18000 | D93: 363600 | E93: 133300 | F93: 262300 | G93: 0.5402688845 | H93: 141712.5284
A94: 9 | B94: 0 | C94: 0 | D94: 0 | E94: 0 | F94: 0 | G94: 0 | H94: 0
A95: 10 | B95: 0 | C95: 0 | D95: 0 | E95: 0 | F95: 0 | G95: 0 | H95: 0
E97: Summe Barwert: | H97: =SUM(H86:H95) -> 814725.5438
E98: abzgl. Anschaffungswert: | H98: =I10*(-1) -> -420000
E99: Kapitalwert | H99: =H97+H98 -> 394725.5438
A102: Details Variante 4
B104: Jahr | C104: Output (LE) | D104: Erlös | E104: Ausgaben | F104: Überschuss | G104: Faktor | H104: Barwert
G105: Abzinsung
A106: 1 | B106: =IF($K$12<>0,1,0) -> 0 | C106: =IF(B106=0,0,$K$31) -> 0 | D106: =C106*$K$26 -> 0 | E106: =IF(C106=0,0,TREND($K$20:$L$20,$K$17:$L$17,C106)) -> 0 | F106: =IF(B106=$K$12,D106-E106+$K$11,D106-E106) -> 0 | G106: =IF(B106=0,0,(1+$E$29)^(B106*(-1))) -> 0 | H106: =F106*G106 -> 0
A107: 2 | B107: =IF(B106=0,0,IF(B106+1<=$K$12,B106+1,0)) -> 0 | C107: =IF(B107=0,0,C106+(($K$32-$K$31)/($K$12-1))) -> 0 | D107: =C107*$G$26 -> 0 | E107: =IF(C107=0,0,TREND($K$20:$L$20,$K$17:$L$17,C107)) -> 0 | F107: =IF(B107=$K$12,D107-E107+$K$11,D107-E107) -> 0 | G107: =IF(B107=0,0,(1+$E$29)^(B107*(-1))) -> 0 | H107: =F107*G107 -> 0
A108: 3 | B108: =IF(B107=0,0,IF(B107+1<=$K$12,B107+1,0)) -> 0 | C108: =IF(B108=0,0,C107+(($K$32-$K$31)/($K$12-1))) -> 0 | D108: 0 | E108: 0 | F108: 0 | G108: 0 | H108: 0
A109: 4 | B109: 0 | C109: 0 | D109: 0 | E109: 0 | F109: 0 | G109: 0 | H109: 0
A110: 5 | B110: 0 | C110: 0 | D110: 0 | E110: 0 | F110: 0 | G110: 0 | H110: 0
A111: 6 | B111: 0 | C111: 0 | D111: 0 | E111: 0 | F111: 0 | G111: 0 | H111: 0
A112: 7 | B112: 0 | C112: 0 | D112: 0 | E112: 0 | F112: 0 | G112: 0 | H112: 0
A113: 8 | B113: 0 | C113: 0 | D113: 0 | E113: 0 | F113: 0 | G113: 0 | H113: 0
A114: 9 | B114: 0 | C114: 0 | D114: 0 | E114: 0 | F114: 0 | G114: 0 | H114: 0
A115: 10 | B115: 0 | C115: 0 | D115: 0 | E115: 0 | F115: 0 | G115: 0 | H115: 0
E117: Summe Barwert: | H117: =SUM(H106:H115) -> 0
E118: abzgl. Anschaffungswert: | H118: =G52*(-1) -> 0
E119: Kapitalwert | H119: =H117+H118 -> 0

Sheet Annuität
A2: =Kostenvergleich!A2 -> Basisdaten für alle Varianten
B4: =Kostenvergleich!B4 -> Zinssatz kalk. Zinsen | E4: =Kostenvergleich!E4 -> 0.1
B5: =Kostenvergleich!B5 -> erwartete Auslastung | E5: =Kostenvergleich!E5 -> 10000
B7: =Kapitalwert!B29 -> Zinssatz für Abzinsung | E7: =Kapitalwert!E29 -> 0.08
B9: =Kostenvergleich!B7 -> Daten je Variante | E9: (Zusammenfassung)
E11: ='Nutzwert-Analyse'!E3 -> Variante 1 | G11: ='Nutzwert-Analyse'!H3 -> Variante 2 | I11: ='Nutzwert-Analyse'!K3 -> Variante 3 | K11: ='Nutzwert-Analyse'!N3 -> Variante 4
B13: =Kostenvergleich!B12 -> Nutzungsdauer (Jahre) | E13: =Kostenvergleich!E12 -> 5 | G13: =Kostenvergleich!G12 -> 4 | I13: =Kostenvergleich!I12 -> 8 | K13: =Kostenvergleich!K12 -> 0
B15: Kapitalwert (Net Present Value, NPV)
B16: Wert aller Zahlungsströme zum heutigen Zeitpunkt | E16: =Kapitalwert!E38 -> 117845.0409 | G16: =Kapitalwert!G38 -> 13797.84586 | I16: =Kapitalwert!I38 -> 394725.5438 | K16: =Kapitalwert!K38 -> 0
B19: Annuität | E19: =($E$7*((1+$E$7)^E13))/(((1+$E$7)^E13)-1)*E16 -> 29515.05112 | G19: =($E$7*((1+$E$7)^G13))/(((1+$E$7)^G13)-1)*G16 -> 4165.856721 | I19: =($E$7*((1+$E$7)^I13))/(((1+$E$7)^I13)-1)*I16 -> 68688.071 | K19: =($E$7*((1+$E$7)^K13))/(((1+$E$7)^K13)-1)*K16 -> 
B20: (Zielwert je Periode)
